[Event "*** Titled Tuesday Blitz"]
[Site "Chess.com"]
[Date "2019.10.01"]
[Round "5"]
[White "Vlad_Lukiianchuk"]
[Black "djano"]
[Result "1-0"]
[WhiteElo "2560"]
[BlackElo "2379"]
[TimeControl "180+2"]
[EndTime "14:12:59 PDT"]
[Termination "Vlad_Lukiianchuk won by resignation"]

1. c4 {[%clk 0:03:01.9]} 1... Nf6 {[%clk 0:02:59.4]} 2. Nc3 {[%clk 0:03:02.6]}
2... d5 {[%clk 0:02:59.8]} 3. g3 {[%clk 0:02:58.9]} 3... d4 {[%clk 0:03:00.4]}
4. Na4 {[%clk 0:02:57]} 4... e5 {[%clk 0:02:55]} 5. d3 {[%clk 0:02:57.1]} 5...
Be7 {[%clk 0:02:48]} 6. Bg2 {[%clk 0:02:55.9]} 6... O-O {[%clk 0:02:48.8]} 7.
Bd2 {[%clk 0:02:55.5]} 7... c5 {[%clk 0:02:43.2]} 8. a3 {[%clk 0:02:44.8]} 8...
Nc6 {[%clk 0:02:43.4]} 9. Rb1 {[%clk 0:02:44.5]} 9... Bf5 {[%clk 0:02:39.1]} 10.
Qc2 {[%clk 0:02:44.2]} 10... a5 {[%clk 0:02:30.3]} 11. Nh3 {[%clk 0:02:39.2]}
11... Qd7 {[%clk 0:02:29.6]} 12. Nb6 {[%clk 0:02:30.9]} 12... Qd8 {[%clk
0:02:28.9]} 13. Nxa8 {[%clk 0:02:30.7]} 13... Qxa8 {[%clk 0:02:29.3]} 14. f3
{[%clk 0:02:11.2]} 14... Qc8 {[%clk 0:02:19.1]} 15. Nf2 {[%clk 0:02:11.7]} 15...
Ne8 {[%clk 0:02:15.5]} 16. h4 {[%clk 0:01:44.1]} 16... h6 {[%clk 0:02:12]} 17.
Bh3 {[%clk 0:01:39.9]} 17... Nd6 {[%clk 0:02:12.5]} 18. Bxf5 {[%clk 0:01:38]}
18... Nxf5 {[%clk 0:02:13.9]} 19. Ne4 {[%clk 0:01:39.2]} 19... Ne3 {[%clk
0:02:07.6]} 20. Bxe3 {[%clk 0:01:26.3]} 20... dxe3 {[%clk 0:02:09.5]} 21. Nc3
{[%clk 0:01:27.2]} 21... f5 {[%clk 0:02:01.4]} 22. Nd5 {[%clk 0:01:26.7]} 22...
Bd8 {[%clk 0:02:02.7]} 23. Kf1 {[%clk 0:00:32.3]} 23... f4 {[%clk 0:01:46.4]}
24. g4 {[%clk 0:00:32.4]} 24... Nd4 {[%clk 0:01:39.5]} 25. Qd1 {[%clk
0:00:28.9]} 25... b5 {[%clk 0:01:32.4]} 26. Nc3 {[%clk 0:00:28]} 26... b4 {[%clk
0:01:28.8]} 27. axb4 {[%clk 0:00:28.8]} 27... axb4 {[%clk 0:01:29.9]} 28. Ne4
{[%clk 0:00:30.7]} 28... b3 {[%clk 0:01:19.3]} 29. Ra1 {[%clk 0:00:24.2]} 29...
Be7 {[%clk 0:01:16.6]} 30. Kg2 {[%clk 0:00:22.4]} 30... h5 {[%clk 0:01:17.1]}
31. g5 {[%clk 0:00:21.4]} 31... Nc2 {[%clk 0:01:08.6]} 32. Ra7 {[%clk
0:00:21.8]} 32... Qe6 {[%clk 0:01:06.5]} 33. Ra5 {[%clk 0:00:21.1]} 33... Rc8
{[%clk 0:00:51.5]} 34. Rb5 {[%clk 0:00:21.5]} 34... Nd4 {[%clk 0:00:52.8]} 35.
Rxb3 {[%clk 0:00:22.5]} 35... Nxb3 {[%clk 0:00:33.9]} 36. Qxb3 {[%clk
0:00:24.4]} 36... Qa6 {[%clk 0:00:35.7]} 37. Nc3 {[%clk 0:00:21.9]} 37... Qa8
{[%clk 0:00:31]} 38. Nd5 {[%clk 0:00:22.2]} 38... Bd8 {[%clk 0:00:32.6]} 39. Qc3
{[%clk 0:00:21.7]} 39... Rb8 {[%clk 0:00:27.7]} 40. Qxe5 {[%clk 0:00:21.4]}
40... Ba5 {[%clk 0:00:26.3]} 41. Ra1 {[%clk 0:00:20]} 41... Re8 {[%clk
0:00:27.8]} 42. Rxa5 {[%clk 0:00:18.1]} 42... Qd8 {[%clk 0:00:29.4]} 43. Qc3
{[%clk 0:00:17]} 43... Re6 {[%clk 0:00:24.6]} 44. Ra7 {[%clk 0:00:17.4]} 44...
Rg6 {[%clk 0:00:24.4]} 45. Nxf4 {[%clk 0:00:16.2]} 45... Qb8 {[%clk 0:00:20.7]}
46. Nxg6 {[%clk 0:00:13.2]} 46... Qxa7 {[%clk 0:00:21.9]} 47. Qe5 {[%clk
0:00:13.8]} 47... Qf7 {[%clk 0:00:20.6]} 48. Nf4 {[%clk 0:00:13.7]} 48... Qb7
{[%clk 0:00:20.2]} 49. Qd5+ {[%clk 0:00:14.4]} 1-0

[Event "*** Titled Tuesday Blitz"]
[Site "Chess.com"]
[Date "2019.10.01"]
[Round "5"]
[White "Alex_32167"]
[Black "FranciscodelaF"]
[Result "1-0"]
[WhiteElo "2657"]
[BlackElo "2449"]
[TimeControl "180+2"]
[EndTime "14:13:02 PDT"]
[Termination "Alex_32167 won by resignation"]

1. e4 {[%clk 0:03:00.6]} 1... e6 {[%clk 0:02:59.4]} 2. d4 {[%clk 0:03:00.1]}
2... d5 {[%clk 0:03:00.6]} 3. Nc3 {[%clk 0:03:00.8]} 3... Nf6 {[%clk 0:02:56.9]}
4. Bd3 {[%clk 0:03:01.2]} 4... dxe4 {[%clk 0:02:51.7]} 5. Nxe4 {[%clk
0:03:01.7]} 5... Nbd7 {[%clk 0:02:53.6]} 6. Qe2 {[%clk 0:03:02.5]} 6... Nxe4
{[%clk 0:02:51.9]} 7. Bxe4 {[%clk 0:03:03.4]} 7... Nf6 {[%clk 0:02:53.8]} 8.
Bxb7 {[%clk 0:03:04]} 8... Bxb7 {[%clk 0:02:38]} 9. Qb5+ {[%clk 0:03:04.3]} 9...
Nd7 {[%clk 0:02:39.9]} 10. Qxb7 {[%clk 0:03:01.5]} 10... Bd6 {[%clk 0:02:41.8]}
11. Nf3 {[%clk 0:02:59.2]} 11... O-O {[%clk 0:02:40]} 12. O-O {[%clk 0:02:59.8]}
12... e5 {[%clk 0:02:39.8]} 13. Bg5 {[%clk 0:02:53.6]} 13... Qe8 {[%clk
0:02:35.2]} 14. Rfe1 {[%clk 0:02:50.8]} 14... f6 {[%clk 0:02:36.3]} 15. Bh4
{[%clk 0:02:46.1]} 15... Qh5 {[%clk 0:02:33.2]} 16. Qd5+ {[%clk 0:02:40.3]}
16... Kh8 {[%clk 0:02:33.6]} 17. Bg3 {[%clk 0:02:35.6]} 17... Nb6 {[%clk
0:02:25.3]} 18. Qb5 {[%clk 0:02:30]} 18... a6 {[%clk 0:02:25.6]} 19. Qb3 {[%clk
0:02:20.1]} 19... Rae8 {[%clk 0:01:46.3]} 20. dxe5 {[%clk 0:02:09.1]} 20... fxe5
{[%clk 0:01:45.9]} 21. Re4 {[%clk 0:02:09.9]} 21... Nd7 {[%clk 0:01:44.4]} 22.
Rae1 {[%clk 0:02:04.2]} 22... Nc5 {[%clk 0:01:44]} 23. Qd5 {[%clk 0:02:02.7]}
23... Nxe4 {[%clk 0:01:44.5]} 24. Qxe4 {[%clk 0:02:03.6]} 24... Qf5 {[%clk
0:01:44.9]} 25. Nd2 {[%clk 0:02:03]} 25... Qxe4 {[%clk 0:01:40.9]} 26. Nxe4
{[%clk 0:02:04]} 26... Rb8 {[%clk 0:01:41.5]} 27. b3 {[%clk 0:02:03.7]} 27...
Kg8 {[%clk 0:01:40.7]} 28. c4 {[%clk 0:02:00.1]} 28... Bb4 {[%clk 0:01:34.4]}
29. Re2 {[%clk 0:01:50.9]} 29... Rbd8 {[%clk 0:01:33.1]} 30. h4 {[%clk 0:01:48]}
30... Rfe8 {[%clk 0:01:31]} 31. Ng5 {[%clk 0:01:41.3]} 31... h6 {[%clk
0:01:31.8]} 32. Ne4 {[%clk 0:01:38.6]} 32... Kf7 {[%clk 0:01:25.7]} 33. f3
{[%clk 0:01:35]} 33... Rd1+ {[%clk 0:01:24.2]} 34. Kh2 {[%clk 0:01:35.6]} 34...
Ke6 {[%clk 0:01:12.9]} 35. Nf2 {[%clk 0:01:35.8]} 35... Rd2 {[%clk 0:01:11.5]}
36. Rxe5+ {[%clk 0:01:35.8]} 36... Kf7 {[%clk 0:01:12.7]} 37. Rf5+ {[%clk
0:01:25.7]} 37... Kg6 {[%clk 0:01:13.8]} 38. Rf4 {[%clk 0:01:26.7]} 38... Bd6
{[%clk 0:01:09]} 39. Rg4+ {[%clk 0:01:26.7]} 39... Kf7 {[%clk 0:01:08.3]} 40.
Bxd6 {[%clk 0:01:22.8]} 40... cxd6 {[%clk 0:01:09.6]} 41. Ne4 {[%clk 0:01:23.8]}
41... Rd3 {[%clk 0:01:10.4]} 42. Rf4+ {[%clk 0:01:19.7]} 42... Kg8 {[%clk
0:01:10.7]} 43. Rf5 {[%clk 0:01:19.1]} 43... Re5 {[%clk 0:01:12]} 44. Nxd6
{[%clk 0:01:17.1]} 44... Rxf5 {[%clk 0:01:12.7]} 45. Nxf5 {[%clk 0:01:18.1]}
45... Rd2 {[%clk 0:01:14.6]} 46. a4 {[%clk 0:01:06.4]} 46... Re2 {[%clk
0:01:02.4]} 47. b4 {[%clk 0:01:02.2]} 47... Ra2 {[%clk 0:01:01.5]} 48. a5 {[%clk
0:01:02.3]} 48... Ra4 {[%clk 0:01:00.6]} 49. Ne7+ {[%clk 0:01:00.3]} 49... Kf7
{[%clk 0:01:02]} 50. Nc6 {[%clk 0:01:02.2]} 50... Ke6 {[%clk 0:01:02.4]} 51. b5
{[%clk 0:01:00.4]} 51... Kd6 {[%clk 0:01:03.1]} 52. Nd4 {[%clk 0:00:55.3]} 52...
Rxc4 {[%clk 0:01:00.2]} 53. bxa6 {[%clk 0:00:50.7]} 53... Rc5 {[%clk 0:00:44.4]}
54. Nb3 {[%clk 0:00:35.9]} 54... Rc6 {[%clk 0:00:45.2]} 55. a7 {[%clk 0:00:35]}
55... Ra6 {[%clk 0:00:46.6]} 56. Nd4 {[%clk 0:00:36]} 56... Kc5 {[%clk
0:00:47.7]} 57. Ne6+ {[%clk 0:00:33.4]} 57... Kb5 {[%clk 0:00:48.3]} 58. Nc7+
{[%clk 0:00:33.9]} 1-0

[Event "*** Titled Tuesday Blitz"]
[Site "Chess.com"]
[Date "2019.10.01"]
[Round "5"]
[White "gena217"]
[Black "Olga_Girya"]
[Result "0-1"]
[WhiteElo "2871"]
[BlackElo "2492"]
[TimeControl "180+2"]
[EndTime "14:13:04 PDT"]
[Termination "Olga_Girya won by resignation"]

1. e4 {[%clk 0:03:01.9]} 1... c6 {[%clk 0:03:00.6]} 2. d4 {[%clk 0:03:02]} 2...
d5 {[%clk 0:03:02.2]} 3. Nc3 {[%clk 0:03:03.4]} 3... dxe4 {[%clk 0:03:02.9]} 4.
Nxe4 {[%clk 0:03:05.3]} 4... Bf5 {[%clk 0:03:04.4]} 5. Ng3 {[%clk 0:03:06.3]}
5... Bg6 {[%clk 0:03:06]} 6. h4 {[%clk 0:03:07.9]} 6... h6 {[%clk 0:03:07.4]} 7.
Nf3 {[%clk 0:03:07.3]} 7... e6 {[%clk 0:03:08.5]} 8. h5 {[%clk 0:03:06.6]} 8...
Bh7 {[%clk 0:03:09.6]} 9. Bd3 {[%clk 0:03:08.2]} 9... Bxd3 {[%clk 0:03:09.8]}
10. Qxd3 {[%clk 0:03:10.1]} 10... Nf6 {[%clk 0:03:09.1]} 11. Bd2 {[%clk
0:03:09.3]} 11... Qb6 {[%clk 0:03:10.3]} 12. O-O-O {[%clk 0:03:10]} 12... Qa6
{[%clk 0:03:11.5]} 13. Qb3 {[%clk 0:03:10.1]} 13... c5 {[%clk 0:03:02.8]} 14.
Rhe1 {[%clk 0:03:00.9]} 14... c4 {[%clk 0:03:00.4]} 15. Qe3 {[%clk 0:02:54.4]}
15... Qxa2 {[%clk 0:02:59.3]} 16. Bc3 {[%clk 0:02:55.1]} 16... Nd5 {[%clk
0:02:48.4]} 17. Qe4 {[%clk 0:02:49.3]} 17... Be7 {[%clk 0:02:09]} 18. Nf5 {[%clk
0:02:40.6]} 18... exf5 {[%clk 0:01:41.2]} 19. Qxd5 {[%clk 0:02:31.5]} 19... Nc6
{[%clk 0:01:42.6]} 20. Qxf5 {[%clk 0:01:48]} 20... O-O {[%clk 0:01:39.5]} 21. d5
{[%clk 0:01:44.4]} 21... Rad8 {[%clk 0:01:39.1]} 22. Qg4 {[%clk 0:01:25.2]}
22... Bg5+ {[%clk 0:00:41]} 23. Nxg5 {[%clk 0:01:21.7]} 23... Qa1+ {[%clk
0:00:41.9]} 24. Kd2 {[%clk 0:01:18.1]} 24... Rxd5+ {[%clk 0:00:43.8]} 25. Ke2
{[%clk 0:01:19.1]} 25... Rxg5 {[%clk 0:00:43.1]} 26. Qxg5 {[%clk 0:01:03]} 26...
Qxd1+ {[%clk 0:00:43.6]} 27. Rxd1 {[%clk 0:01:04.9]} 27... hxg5 {[%clk
0:00:45.1]} 28. Rd7 {[%clk 0:00:58.6]} 28... Re8+ {[%clk 0:00:46.6]} 29. Kf3
{[%clk 0:00:58.8]} 29... Re7 {[%clk 0:00:48.5]} 30. Rd5 {[%clk 0:00:34.2]} 30...
f6 {[%clk 0:00:48.2]} 31. Rc5 {[%clk 0:00:27.6]} 31... Kf7 {[%clk 0:00:35.9]}
32. Rxc4 {[%clk 0:00:26.9]} 32... Rd7 {[%clk 0:00:22.6]} 33. Re4 {[%clk
0:00:24.7]} 33... Rd1 {[%clk 0:00:21.1]} 34. g4 {[%clk 0:00:21.9]} 34... Rh1
{[%clk 0:00:21.5]} 35. Kg2 {[%clk 0:00:22.3]} 35... Rd1 {[%clk 0:00:21.6]} 36.
Re2 {[%clk 0:00:21.5]} 36... Ne7 {[%clk 0:00:22.3]} 37. Rd2 {[%clk 0:00:19.2]}
37... Rxd2 {[%clk 0:00:21.2]} 38. Bxd2 {[%clk 0:00:21.1]} 38... g6 {[%clk
0:00:22.6]} 39. h6 {[%clk 0:00:20.2]} 39... Kg8 {[%clk 0:00:23.5]} 40. Kf3
{[%clk 0:00:17.8]} 40... Kh7 {[%clk 0:00:24.3]} 41. Bc3 {[%clk 0:00:19.4]} 41...
Nd5 {[%clk 0:00:23.2]} 42. Bd4 {[%clk 0:00:21]} 42... f5 {[%clk 0:00:21]} 43.
Bxa7 {[%clk 0:00:21.2]} 43... Kxh6 {[%clk 0:00:21.1]} 44. Bd4 {[%clk 0:00:19.1]}
44... Kh7 {[%clk 0:00:20.7]} 45. c3 {[%clk 0:00:19]} 45... Kg8 {[%clk
0:00:21.5]} 46. Ke2 {[%clk 0:00:17.3]} 46... Kf7 {[%clk 0:00:22.1]} 47. Kd3
{[%clk 0:00:18.8]} 47... fxg4 {[%clk 0:00:22.9]} 48. c4 {[%clk 0:00:16.8]} 48...
Nf4+ {[%clk 0:00:23.2]} 49. Ke4 {[%clk 0:00:16.9]} 49... Ke6 {[%clk 0:00:24.4]}
50. b4 {[%clk 0:00:18.4]} 50... Ne2 {[%clk 0:00:25.5]} 51. Be3 {[%clk
0:00:18.3]} 51... g3 {[%clk 0:00:26.5]} 52. fxg3 {[%clk 0:00:18.9]} 52... Nxg3+
{[%clk 0:00:27.3]} 53. Kf3 {[%clk 0:00:20.6]} 53... Nf5 {[%clk 0:00:28.5]} 54.
Bxg5 {[%clk 0:00:21.3]} 54... Nd6 {[%clk 0:00:28.7]} 55. c5 {[%clk 0:00:21.2]}
55... Nf7 {[%clk 0:00:29.7]} 56. Bd2 {[%clk 0:00:21.7]} 56... Kd5 {[%clk
0:00:31.3]} 57. Be1 {[%clk 0:00:22.3]} 57... Ne5+ {[%clk 0:00:32.3]} 58. Kf4
{[%clk 0:00:23.5]} 58... Nd3+ {[%clk 0:00:33.5]} 59. Kg5 {[%clk 0:00:25]} 59...
Nxe1 {[%clk 0:00:34.9]} 60. b5 {[%clk 0:00:26.4]} 60... Kxc5 {[%clk 0:00:35.2]}
0-1

[Event "*** Titled Tuesday Blitz"]
[Site "Chess.com"]
[Date "2019.10.01"]
[Round "5"]
[White "GHANDEEVAM2003"]
[Black "csati17"]
[Result "1-0"]
[WhiteElo "2972"]
[BlackElo "2482"]
[TimeControl "180+2"]
[EndTime "14:13:05 PDT"]
[Termination "GHANDEEVAM2003 won by resignation"]

1. d4 {[%clk 0:03:01.9]} 1... Nf6 {[%clk 0:02:59.8]} 2. Bg5 {[%clk 0:03:02.4]}
2... e6 {[%clk 0:02:59.7]} 3. e4 {[%clk 0:03:02.7]} 3... h6 {[%clk 0:03:01]} 4.
Bxf6 {[%clk 0:03:04.1]} 4... Qxf6 {[%clk 0:03:02.9]} 5. Nf3 {[%clk 0:03:05.6]}
5... d6 {[%clk 0:02:57.5]} 6. Nc3 {[%clk 0:03:05.4]} 6... g6 {[%clk 0:02:55.7]}
7. e5 {[%clk 0:03:04.9]} 7... Qe7 {[%clk 0:02:53.1]} 8. Bd3 {[%clk 0:03:05.7]}
8... Bg7 {[%clk 0:02:53.6]} 9. h4 {[%clk 0:03:04.7]} 9... Nc6 {[%clk 0:02:51.1]}
10. Qe2 {[%clk 0:03:03.6]} 10... d5 {[%clk 0:02:44.3]} 11. g4 {[%clk 0:03:01]}
11... Nb4 {[%clk 0:02:44.9]} 12. Bb5+ {[%clk 0:02:58.4]} 12... c6 {[%clk
0:02:45.7]} 13. Ba4 {[%clk 0:02:58.8]} 13... b5 {[%clk 0:02:46.1]} 14. a3 {[%clk
0:02:55]} 14... bxa4 {[%clk 0:02:41.1]} 15. axb4 {[%clk 0:02:56.4]} 15... Qxb4
{[%clk 0:02:42.8]} 16. O-O {[%clk 0:02:57.6]} 16... a5 {[%clk 0:02:39.2]} 17.
Rfb1 {[%clk 0:02:51.8]} 17... Ba6 {[%clk 0:02:34.2]} 18. Qe3 {[%clk 0:02:53]}
18... c5 {[%clk 0:02:04]} 19. Rxa4 {[%clk 0:02:50.1]} 19... cxd4 {[%clk
0:02:03.5]} 20. Nxd4 {[%clk 0:02:52]} 20... Qe7 {[%clk 0:01:48.4]} 21. Rxa5
{[%clk 0:02:48.7]} 21... Qxh4 {[%clk 0:01:47]} 22. Qf4 {[%clk 0:02:38.3]} 22...
O-O {[%clk 0:01:38.3]} 23. Nf3 {[%clk 0:02:30.7]} 23... Qe7 {[%clk 0:01:38.2]}
24. Rba1 {[%clk 0:02:27.5]} 24... Bb7 {[%clk 0:01:37.2]} 25. Ra7 {[%clk
0:02:26.8]} 25... Rxa7 {[%clk 0:01:35.9]} 26. Rxa7 {[%clk 0:02:28.7]} 26... Ra8
{[%clk 0:01:37.2]} 27. Rxa8+ {[%clk 0:02:24.5]} 27... Bxa8 {[%clk 0:01:39.1]}
28. Qa4 {[%clk 0:02:25.7]} 28... Bb7 {[%clk 0:01:30.8]} 29. Qa7 {[%clk
0:02:18.9]} 29... Bf8 {[%clk 0:01:30.8]} 30. Nb5 {[%clk 0:02:16.2]} 30... Qb4
{[%clk 0:01:27.1]} 31. Nfd4 {[%clk 0:02:09.5]} 31... Qe1+ {[%clk 0:01:19.5]} 32.
Kg2 {[%clk 0:02:09.7]} 32... Qe4+ {[%clk 0:01:19.9]} 33. f3 {[%clk 0:02:10.8]}
33... Qxe5 {[%clk 0:00:56.1]} 34. Qxb7 {[%clk 0:02:11.5]} 34... h5 {[%clk
0:00:53.8]} 35. Qc7 {[%clk 0:02:03.4]} 35... Qg5 {[%clk 0:00:52.1]} 36. Qg3
{[%clk 0:01:55.3]} 36... e5 {[%clk 0:00:47.8]} 37. Nc6 {[%clk 0:01:55.1]} 37...
e4 {[%clk 0:00:48.9]} 38. gxh5 {[%clk 0:01:48.9]} 38... exf3+ {[%clk 0:00:44.5]}
39. Kxf3 {[%clk 0:01:48]} 39... Qf6+ {[%clk 0:00:45.6]} 40. Qf4 {[%clk
0:01:39.3]} 40... Qxc6 {[%clk 0:00:47.5]} 41. Nd4 {[%clk 0:01:40.6]} 41... Qa6
{[%clk 0:00:43.2]} 42. hxg6 {[%clk 0:01:39.7]} 42... Qxg6 {[%clk 0:00:43.5]} 43.
c3 {[%clk 0:01:37.9]} 43... Qd3+ {[%clk 0:00:42.9]} 44. Qe3 {[%clk 0:01:37.1]}
44... Qg6 {[%clk 0:00:42.4]} 45. b4 {[%clk 0:01:35]} 45... Bd6 {[%clk
0:00:43.4]} 46. b5 {[%clk 0:01:27.6]} 46... Qg3+ {[%clk 0:00:33.2]} 47. Ke2
{[%clk 0:01:28.5]} 47... Qg2+ {[%clk 0:00:34.6]} 48. Kd1 {[%clk 0:01:26.2]}
48... Qf1+ {[%clk 0:00:35.3]} 49. Kc2 {[%clk 0:01:26.5]} 49... Qg2+ {[%clk
0:00:29.4]} 50. Kb3 {[%clk 0:01:27.4]} 50... Qg6 {[%clk 0:00:26.3]} 51. Qe8+
{[%clk 0:01:11.3]} 51... Kg7 {[%clk 0:00:26.2]} 52. Qe1 {[%clk 0:01:12.5]} 52...
Bc5 {[%clk 0:00:23.1]} 53. Qe5+ {[%clk 0:01:10.4]} 53... Kh7 {[%clk 0:00:15.7]}
54. Qxd5 {[%clk 0:01:08.8]} 54... Qb1+ {[%clk 0:00:16.4]} 55. Kc4 {[%clk
0:01:09.7]} 55... Bxd4 {[%clk 0:00:17.5]} 56. Qxd4 {[%clk 0:01:11.4]} 56... Qa2+
{[%clk 0:00:18.1]} 57. Kc5 {[%clk 0:01:12.6]} 57... Qa7+ {[%clk 0:00:18.1]} 58.
b6 {[%clk 0:01:13.8]} 58... Qe7+ {[%clk 0:00:17.4]} 59. Kb5 {[%clk 0:01:11.7]}
59... Qe8+ {[%clk 0:00:18.4]} 60. Kb4 {[%clk 0:01:11]} 60... Qc6 {[%clk
0:00:18.1]} 61. c4 {[%clk 0:01:08.9]} 61... Kg6 {[%clk 0:00:18.5]} 62. c5 {[%clk
0:01:08.4]} 62... f6 {[%clk 0:00:18.6]} 63. Qd6 {[%clk 0:01:06.5]} 63... Qe4+
{[%clk 0:00:18.9]} 64. Kb5 {[%clk 0:01:08]} 64... Qb1+ {[%clk 0:00:19.9]} 65.
Kc6 {[%clk 0:01:09.5]} 65... Qe4+ {[%clk 0:00:20.8]} 66. Kc7 {[%clk 0:01:09.6]}
66... Kg5 {[%clk 0:00:19.7]} 1-0

[Event "*** Titled Tuesday Blitz"]
[Site "Chess.com"]
[Date "2019.10.01"]
[Round "5"]
[White "JussupowFan"]
[Black "SloLev"]
[Result "0-1"]
[WhiteElo "2202"]
[BlackElo "2476"]
[TimeControl "180+2"]
[EndTime "14:13:16 PDT"]
[Termination "SloLev won by resignation"]

1. e4 {[%clk 0:02:47.7]} 1... e5 {[%clk 0:03:01.2]} 2. Nf3 {[%clk 0:02:48.6]}
2... Nc6 {[%clk 0:03:02.5]} 3. Bb5 {[%clk 0:02:49.8]} 3... Nge7 {[%clk
0:03:03.5]} 4. c3 {[%clk 0:02:50.1]} 4... a6 {[%clk 0:03:04]} 5. Ba4 {[%clk
0:02:51]} 5... g6 {[%clk 0:03:04.6]} 6. d4 {[%clk 0:02:52.2]} 6... exd4 {[%clk
0:03:06]} 7. cxd4 {[%clk 0:02:54.1]} 7... b5 {[%clk 0:03:06.5]} 8. Bb3 {[%clk
0:02:51.2]} 8... Bg7 {[%clk 0:03:07.9]} 9. d5 {[%clk 0:02:50]} 9... Na5 {[%clk
0:03:08.6]} 10. O-O {[%clk 0:02:42.3]} 10... O-O {[%clk 0:03:07.8]} 11. Nc3
{[%clk 0:02:40.1]} 11... d6 {[%clk 0:03:05.3]} 12. Bg5 {[%clk 0:02:37.5]} 12...
h6 {[%clk 0:03:01.2]} 13. Be3 {[%clk 0:02:38.6]} 13... Nxb3 {[%clk 0:02:52.9]}
14. axb3 {[%clk 0:02:39.2]} 14... f5 {[%clk 0:02:54.8]} 15. Bd4 {[%clk
0:02:32.9]} 15... fxe4 {[%clk 0:02:39.6]} 16. Bxg7 {[%clk 0:02:33.4]} 16... Kxg7
{[%clk 0:02:39.8]} 17. Qd4+ {[%clk 0:02:33.9]} 17... Kh7 {[%clk 0:02:40.2]} 18.
Nxe4 {[%clk 0:02:33.4]} 18... Nf5 {[%clk 0:02:41.4]} 19. Qc3 {[%clk 0:02:25.2]}
19... Bb7 {[%clk 0:02:37.7]} 20. Rad1 {[%clk 0:02:25.9]} 20... Qe7 {[%clk
0:02:17.2]} 21. Rfe1 {[%clk 0:02:26.3]} 21... Qg7 {[%clk 0:02:12]} 22. Rc1
{[%clk 0:02:20.8]} 22... Qxc3 {[%clk 0:02:08.7]} 23. Rxc3 {[%clk 0:02:22.7]}
23... Rac8 {[%clk 0:02:10.1]} 24. Rec1 {[%clk 0:02:22.1]} 24... Rf7 {[%clk
0:02:11.1]} 25. Neg5+ {[%clk 0:02:15.6]} 25... hxg5 {[%clk 0:01:48.2]} 26. Nxg5+
{[%clk 0:02:17.5]} 26... Kg7 {[%clk 0:01:49.4]} 27. Nxf7 {[%clk 0:02:17.8]}
27... Bxd5 {[%clk 0:01:50.9]} 28. Ng5 {[%clk 0:02:11.5]} 28... c6 {[%clk
0:01:43.3]} 29. Re1 {[%clk 0:02:01.3]} 29... Kf6 {[%clk 0:01:25.3]} 30. Ne4+
{[%clk 0:01:57.9]} 30... Bxe4 {[%clk 0:01:26.6]} 31. Rxe4 {[%clk 0:01:59.8]}
31... d5 {[%clk 0:01:27.4]} 32. Re1 {[%clk 0:01:53.7]} 32... c5 {[%clk
0:01:26.6]} 33. g4 {[%clk 0:01:44.7]} 33... Nd4 {[%clk 0:01:19.1]} 34. Kg2
{[%clk 0:01:43.4]} 34... Ne6 {[%clk 0:01:16.5]} 35. Kg3 {[%clk 0:01:39.8]} 35...
d4 {[%clk 0:01:16.2]} 36. Rf3+ {[%clk 0:01:39.7]} 36... Ke7 {[%clk 0:01:15.8]}
37. h4 {[%clk 0:01:37]} 37... Rd8 {[%clk 0:01:05.2]} 38. g5 {[%clk 0:01:33.1]}
38... d3 {[%clk 0:00:52.7]} 39. Rf6 {[%clk 0:00:59.7]} 39... Rd6 {[%clk
0:00:52.4]} 40. Rxg6 {[%clk 0:01:00.5]} 40... d2 {[%clk 0:00:51.3]} 41. Rgxe6+
{[%clk 0:01:01.4]} 41... Rxe6 {[%clk 0:00:50.1]} 42. Rd1 {[%clk 0:01:03.3]}
42... Rd6 {[%clk 0:00:34.5]} 43. Kg4 {[%clk 0:01:04.3]} 43... Rd4+ {[%clk
0:00:33.3]} 44. f4 {[%clk 0:01:05.5]} 44... a5 {[%clk 0:00:32.6]} 45. h5 {[%clk
0:01:06.6]} 45... c4 {[%clk 0:00:29.2]} 46. bxc4 {[%clk 0:01:07.2]} 46... bxc4
{[%clk 0:00:30.7]} 47. h6 {[%clk 0:01:07.6]} 47... Kf7 {[%clk 0:00:31.8]} 48.
Kf5 {[%clk 0:01:04.5]} 48... a4 {[%clk 0:00:27.2]} 49. g6+ {[%clk 0:01:05.1]}
49... Kg8 {[%clk 0:00:27.7]} 50. h7+ {[%clk 0:00:42.7]} 50... Kh8 {[%clk
0:00:24]} 51. Kf6 {[%clk 0:00:40.6]} 51... Rd6+ {[%clk 0:00:20.1]} 52. Kg5
{[%clk 0:00:41.6]} 52... a3 {[%clk 0:00:19.5]} 53. bxa3 {[%clk 0:00:35]} 53...
c3 {[%clk 0:00:20.6]} 54. Rb1 {[%clk 0:00:34.3]} 54... d1=Q {[%clk 0:00:18.9]}
55. Rxd1 {[%clk 0:00:22.6]} 55... Rxd1 {[%clk 0:00:20.8]} 56. f5 {[%clk
0:00:11.7]} 56... c2 {[%clk 0:00:21.5]} 57. Kf6 {[%clk 0:00:13.1]} 57... c1=Q
{[%clk 0:00:21.2]} 0-1